[Event "MCR zen 2022"]
[Site "Hotel Opera, Jaroměřice nad Rokytnou, Czech Republic"]
[Date "????.??.??"]
[Round "2.1"]
[White "Pilsova, Karolina"]
[Black "Zelbova, Lada"]
[Result "1-0"]
[TimeControl "90 min/40 moves + 30 min + 30s/move"]
[WhiteElo "2229"]
[BlackElo "1967"]

1. Nf3 {[%clk 01:30:56]} {[%emt 00:00:03]} c5 {[%clk 01:30:23]} {[%emt
00:00:37]} 2. c4 {[%clk 01:31:14]} {[%emt 00:00:12]} Nc6 {[%clk 01:30:20]}
{[%emt 00:00:33]} 3. d4 {[%clk 01:31:12]} {[%emt 00:00:32]} cxd4 {[%clk
01:29:59]} {[%emt 00:00:51]} 4. Nxd4 {[%clk 01:31:35]} {[%emt 00:00:07]} e5
{[%clk 01:29:41]} {[%emt 00:00:48]} 5. Nb5 {[%clk 01:26:52]} {[%emt 00:05:13]}
d6 {[%clk 01:28:31]} {[%emt 00:01:40]} 6. g3 {[%clk 01:22:09]} {[%emt
00:05:13]} Be6 {[%clk 01:27:02]} {[%emt 00:01:59]} 7. b3 {[%clk 01:21:56]}
{[%emt 00:00:44]} Rc8 {[%clk 01:22:29]} {[%emt 00:05:02]} 8. Bg2 {[%clk
01:16:34]} {[%emt 00:05:53]} d5 {[%clk 01:11:50]} {[%emt 00:11:09]} 9. cxd5
{[%clk 01:07:53]} {[%emt 00:09:11]} Nb4 {[%clk 01:11:31]} {[%emt 00:00:48]} 10.
N5c3 {[%clk 01:03:34]} {[%emt 00:04:49]} Nxd5 {[%clk 01:06:43]} {[%emt
00:05:18]} 11. Bxd5 {[%clk 00:53:55]} {[%emt 00:10:09]} Bxd5 {[%clk 00:50:21]}
{[%emt 00:16:53]} 12. Nxd5 {[%clk 00:54:16]} {[%emt 00:00:08]} Qa5+ {[%clk
00:41:18]} {[%emt 00:09:33]} 13. Ndc3 {[%clk 00:49:15]} {[%emt 00:05:31]} Bb4
{[%clk 00:40:32]} {[%emt 00:01:17]} 14. Bb2 {[%clk 00:46:22]} {[%emt 00:03:24]}
Rxc3 {[%clk 00:40:14]} {[%emt 00:00:47]} 15. Nxc3 {[%clk 00:45:39]} {[%emt
00:01:13]} Bxc3+ {[%clk 00:40:37]} {[%emt 00:00:07]} 16. Bxc3 {[%clk 00:46:06]}
{[%emt 00:00:03]} Qxc3+ {[%clk 00:41:01]} {[%emt 00:00:07]} 17. Kf1 {[%clk
00:46:31]} {[%emt 00:00:05]} Qc6 {[%clk 00:40:52]} {[%emt 00:00:38]} 18. f3
{[%clk 00:45:08]} {[%emt 00:01:52]} Ne7 {[%clk 00:40:30]} {[%emt 00:00:53]} 19.
Qd3 {[%clk 00:39:08]} {[%emt 00:06:30]} O-O {[%clk 00:31:38]} {[%emt 00:09:21]}
20. Kg2 {[%clk 00:38:30]} {[%emt 00:01:08]} Qb6 {[%clk 00:28:44]} {[%emt
00:03:24]} 21. Rhd1 {[%clk 00:38:04]} {[%emt 00:00:56]} Nc6 {[%clk 00:28:30]}
{[%emt 00:00:44]} 22. Rac1 {[%clk 00:37:02]} {[%emt 00:01:32]} h6 {[%clk
00:23:40]} {[%emt 00:05:20]} 23. Qe4 {[%clk 00:31:31]} {[%emt 00:06:02]} Kh8
{[%clk 00:19:57]} {[%emt 00:04:13]} 24. Rd7 {[%clk 00:28:39]} {[%emt 00:03:22]}
f5 {[%clk 00:15:40]} {[%emt 00:04:47]} 25. Qc4 {[%clk 00:27:06]} {[%emt
00:02:02]} Qe3 {[%clk 00:12:36]} {[%emt 00:03:34]} 26. Rc3 {[%clk 00:25:50]}
{[%emt 00:01:47]} Qb6 {[%clk 00:12:21]} {[%emt 00:00:45]} 27. Qc5 {[%clk
00:24:08]} {[%emt 00:02:12]} Qxc5 {[%clk 00:12:07]} {[%emt 00:00:44]} 28. Rxc5
{[%clk 00:24:36]} {[%emt 00:00:02]} Rb8 {[%clk 00:10:00]} {[%emt 00:02:37]} 29.
f4 {[%clk 00:24:08]} {[%emt 00:00:58]} exf4 {[%clk 00:09:05]} {[%emt 00:01:25]}
30. gxf4 {[%clk 00:23:58]} {[%emt 00:00:39]} Re8 {[%clk 00:09:10]} {[%emt
00:00:25]} 31. Kf2 {[%clk 00:23:09]} {[%emt 00:01:19]} Re4 {[%clk 00:08:17]}
{[%emt 00:01:22]} 32. Rxf5 {[%emt 00:04:31]} 1-0

[Event "MCR zen 2022"]
[Site "Hotel Opera, Jaroměřice nad Rokytnou, Czech Republic"]
[Date "????.??.??"]
[Round "2.2"]
[White "Nemcova, Karin"]
[Black "Richterova, Natasa"]
[Result "0-1"]
[TimeControl "90 min/40 moves + 30 min + 30s/move"]
[WhiteClock "00:04:53"]
[BlackClock "00:26:27"]
[WhiteElo "2181"]
[BlackElo "2181"]

1. e4 {[%clk 01:30:56]} c6 {[%clk 01:30:55]} {[%emt 00:00:06]} 2. d4 {[%clk
01:31:22]} {[%emt 00:00:04]} d5 {[%clk 01:31:20]} {[%emt 00:00:04]} 3. e5
{[%clk 01:31:06]} {[%emt 00:00:47]} Bf5 {[%clk 01:31:17]} {[%emt 00:00:33]} 4.
Nf3 {[%clk 01:31:13]} {[%emt 00:00:22]} e6 {[%clk 01:31:30]} {[%emt 00:00:17]}
5. Be2 {[%clk 01:31:15]} {[%emt 00:00:28]} c5 {[%clk 01:31:44]} {[%emt
00:00:16]} 6. c3 {[%clk 01:31:21]} {[%emt 00:00:24]} Nc6 {[%clk 01:32:03]}
{[%emt 00:00:12]} 7. O-O {[%clk 01:29:19]} {[%emt 00:02:32]} Rc8 {[%clk
01:30:56]} {[%emt 00:01:37]} 8. a3 {[%clk 01:28:43]} {[%emt 00:01:07]} Qb6
{[%clk 01:26:57]} {[%emt 00:04:29]} 9. dxc5 {[%clk 01:21:55]} {[%emt 00:07:17]}
Bxc5 {[%clk 01:26:47]} {[%emt 00:00:40]} 10. b4 {[%clk 01:21:25]} {[%emt
00:01:00]} Be7 {[%clk 01:27:16]} {[%emt 00:00:01]} 11. Be3 {[%clk 01:21:14]}
{[%emt 00:00:41]} Qc7 {[%clk 01:27:40]} {[%emt 00:00:06]} 12. b5 {[%clk
01:15:28]} {[%emt 00:06:16]} Na5 {[%clk 01:27:40]} {[%emt 00:00:30]} 13. Bd4
{[%clk 01:12:02]} {[%emt 00:03:56]} b6 {[%clk 01:27:25]} {[%emt 00:00:45]} 14.
Nbd2 {[%clk 01:12:06]} {[%emt 00:00:26]} Nh6 {[%clk 01:26:17]} {[%emt
00:01:38]} 15. Qa4 {[%clk 01:03:15]} {[%emt 00:09:21]} Bg6 {[%clk 01:15:38]}
{[%emt 00:11:08]} 16. c4 {[%clk 00:53:01]} {[%emt 00:10:45]} O-O {[%clk
01:13:29]} {[%emt 00:02:39]} 17. Rac1 {[%clk 00:50:49]} {[%emt 00:02:42]} Rfd8
{[%clk 01:08:41]} {[%emt 00:05:19]} 18. Bb2 {[%clk 00:41:39]} {[%emt 00:09:40]}
Bc5 {[%clk 00:57:37]} {[%emt 00:11:33]} 19. cxd5 {[%clk 00:37:23]} {[%emt
00:04:46]} exd5 {[%clk 00:57:48]} {[%emt 00:00:19]} 20. Rfe1 {[%clk 00:35:16]}
{[%emt 00:02:37]} Qd7 {[%clk 00:56:12]} {[%emt 00:02:05]} 21. Bd4 {[%clk
00:32:59]} {[%emt 00:02:47]} Nb7 {[%clk 00:56:05]} {[%emt 00:00:37]} 22. Nb3
{[%clk 00:32:15]} {[%emt 00:01:14]} Nf5 {[%clk 00:52:55]} {[%emt 00:03:40]} 23.
h3 {[%clk 00:27:24]} {[%emt 00:05:21]} Qe7 {[%clk 00:47:19]} {[%emt 00:06:06]}
24. Bf1 {[%clk 00:22:52]} {[%emt 00:05:02]} Ra8 {[%clk 00:43:55]} {[%emt
00:03:54]} 25. Ra1 {[%clk 00:19:20]} {[%emt 00:04:02]} Qd7 {[%clk 00:41:12]}
{[%emt 00:03:13]} 26. Rac1 {[%clk 00:16:32]} {[%emt 00:03:18]} Rdc8 {[%clk
00:40:13]} {[%emt 00:01:29]} 27. g4 {[%clk 00:14:58]} {[%emt 00:02:04]} Ne7
{[%clk 00:39:35]} {[%emt 00:01:08]} 28. Ng5 {[%clk 00:13:37]} {[%emt 00:01:51]}
Qe8 {[%clk 00:37:50]} {[%emt 00:02:15]} 29. f4 {[%clk 00:13:49]} {[%emt
00:00:18]} h6 {[%clk 00:38:15]} {[%emt 00:00:05]} 30. Nf3 {[%clk 00:14:08]}
{[%emt 00:00:11]} Be4 {[%clk 00:38:10]} {[%emt 00:00:35]} 31. Nbd2 {[%clk
00:12:42]} {[%emt 00:01:56]} a6 {[%clk 00:36:06]} {[%emt 00:02:35]} 32. Qb3
{[%clk 00:10:00]} {[%emt 00:03:12]} axb5 {[%clk 00:32:57]} {[%emt 00:03:39]} 33.
Bxb5 {[%clk 00:09:36]} {[%emt 00:00:54]} Qd8 {[%clk 00:32:25]} {[%emt
00:01:02]} 34. a4 {[%clk 00:09:31]} {[%emt 00:00:35]} Bxd4+ {[%clk 00:27:49]}
{[%emt 00:05:06]} 35. Nxd4 {[%clk 00:09:55]} {[%emt 00:00:07]} Rxc1 {[%clk
00:28:08]} {[%emt 00:00:12]} 36. Rxc1 {[%clk 00:10:19]} {[%emt 00:00:05]} Nc5
{[%clk 00:28:33]} {[%emt 00:00:05]} 37. Qe3 {[%clk 00:05:50]} {[%emt 00:04:58]}
Nxa4 {[%clk 00:28:11]} {[%emt 00:00:53]} 38. f5 {[%clk 00:05:31]} {[%emt
00:00:49]} Nc5 {[%clk 00:28:12]} {[%emt 00:00:28]} 39. f6 {[%clk 00:05:11]}
{[%emt 00:00:50]} Ng6 {[%clk 00:26:52]} {[%emt 00:01:51]} 40. Rf1 {[%clk
00:01:30]} {[%emt 00:04:11]} Nxe5 {[%clk 00:24:24]} {[%emt 00:02:58]} 41. g5
{[%clk 00:01:12]} {[%emt 00:00:47]} g6 {[%clk 00:23:48]} {[%emt 00:01:06]} 42.
gxh6 {[%clk 00:01:34]} {[%emt 00:00:08]} Kh7 {[%clk 00:23:59]} {[%emt
00:00:19]} 43. Qg3 {[%clk 00:26:00]} {[%emt 00:06:04]} Qd6 {[%clk 00:52:58]}
{[%emt 00:01:31]} 44. Qg5 {[%clk 00:22:53]} {[%emt 00:03:36]} Ne6 {[%clk
00:49:19]} {[%emt 00:04:10]} 45. Nxe6 {[%clk 00:22:42]} {[%emt 00:00:40]} Qxe6
{[%clk 00:49:48]} {[%emt 00:00:01]} 46. Qe3 {[%clk 00:19:32]} {[%emt 00:03:40]}
Qd6 {[%clk 00:49:22]} {[%emt 00:00:56]} 47. Nxe4 {[%clk 00:17:55]} {[%emt
00:02:08]} dxe4 {[%clk 00:49:51]} {[%emt 00:00:01]} 48. Qxe4 {[%clk 00:17:49]}
{[%emt 00:00:35]} Qc5+ {[%clk 00:50:13]} {[%emt 00:00:09]} 49. Rf2 {[%clk
00:18:13]} {[%emt 00:00:06]} Ra1+ {[%clk 00:50:32]} {[%emt 00:00:11]} 50. Bf1
{[%clk 00:18:39]} {[%emt 00:00:05]} Ra2 {[%clk 00:50:04]} {[%emt 00:00:57]} 51.
Be2 {[%clk 00:17:20]} {[%emt 00:01:50]} b5 {[%clk 00:49:38]} {[%emt 00:00:57]}
52. h4 {[%clk 00:15:50]} {[%emt 00:01:59]} b4 {[%clk 00:49:45]} {[%emt
00:00:23]} 53. h5 {[%clk 00:16:10]} {[%emt 00:00:10]} b3 {[%clk 00:42:33]}
{[%emt 00:07:42]} 54. hxg6+ {[%clk 00:16:29]} {[%emt 00:00:11]} Nxg6 {[%clk
00:43:02]} 55. Qb7 {[%clk 00:15:43]} {[%emt 00:01:16]} Qg5+ {[%clk 00:38:43]}
{[%emt 00:04:50]} 56. Kh1 {[%clk 00:10:54]} {[%emt 00:05:19]} Qh4+ {[%clk
00:38:13]} {[%emt 00:00:59]} 57. Kg1 {[%clk 00:11:10]} {[%emt 00:00:13]} Qg3+
{[%clk 00:33:50]} {[%emt 00:04:54]} 58. Rg2 {[%clk 00:11:35]} {[%emt 00:00:05]}
Qe3+ {[%clk 00:32:57]} {[%emt 00:01:23]} 59. Kh2 {[%clk 00:11:16]} {[%emt
00:00:49]} Ra7 {[%clk 00:30:56]} {[%emt 00:02:30]} 60. Qb8 {[%clk 00:05:39]}
{[%emt 00:06:08]} Qf4+ {[%clk 00:31:01]} {[%emt 00:00:25]} 61. Qxf4 {[%clk
00:05:33]} {[%emt 00:00:35]} Nxf4 {[%clk 00:31:27]} {[%emt 00:00:04]} 62. Rg7+
{[%clk 00:05:11]} {[%emt 00:00:53]} Kxh6 {[%clk 00:31:52]} {[%emt 00:00:05]} 63.
Bg4 {[%clk 00:05:21]} {[%emt 00:00:19]} b2 {[%clk 00:31:21]} {[%emt 00:01:02]}
64. Bf5 {[%clk 00:05:45]} {[%emt 00:00:06]} Nh5 {[%clk 00:29:11]} {[%emt
00:02:40]} 65. Rg8 {[%clk 00:05:58]} {[%emt 00:00:17]} Rb7 {[%clk 00:29:33]}
{[%emt 00:00:08]} 66. Bb1 {[%clk 00:06:04]} {[%emt 00:00:24]} Nxf6 {[%clk
00:29:35]} {[%emt 00:00:28]} 67. Rg3 {[%clk 00:05:38]} {[%emt 00:00:55]} Nd5
{[%clk 00:28:49]} {[%emt 00:01:16]} 68. Kg2 {[%clk 00:05:58]} {[%emt 00:00:10]}
Rb4 {[%clk 00:28:13]} {[%emt 00:01:07]} 69. Kf2 {[%clk 00:05:32]} {[%emt
00:00:56]} Kh5 {[%clk 00:26:08]} {[%emt 00:02:34]} 70. Rf3 {[%clk 00:05:00]}
{[%emt 00:01:02]} Rf4 {[%clk 00:26:27]} {[%emt 00:00:11]} 0-1

[Event "MCR zen 2022"]
[Site "Hotel Opera, Jaroměřice nad Rokytnou, Czech Republic"]
[Date "????.??.??"]
[Round "2.3"]
[White "Petrova, Kristyna"]
[Black "Trasakova, Adela"]
[Result "1/2-1/2"]
[TimeControl "90 min/40 moves + 30 min + 30s/move"]
[WhiteElo "2264"]
[BlackElo "1842"]

1. Nf3 {[%clk 01:30:56]} {[%emt 00:00:03]} d5 {[%clk 01:30:58]} {[%emt
00:00:02]} 2. g3 {[%clk 01:31:16]} {[%emt 00:00:10]} Nf6 {[%clk 01:31:25]}
{[%emt 00:00:04]} 3. Bg2 {[%clk 01:31:33]} {[%emt 00:00:13]} c6 {[%clk
01:30:44]} {[%emt 00:01:11]} 4. O-O {[%clk 01:31:33]} {[%emt 00:00:29]} Bf5
{[%clk 01:30:40]} {[%emt 00:00:33]} 5. c4 {[%clk 01:31:30]} {[%emt 00:00:33]}
e6 {[%clk 01:30:50]} {[%emt 00:00:21]} 6. cxd5 {[%clk 01:30:58]} {[%emt
00:01:02]} exd5 {[%clk 01:30:38]} {[%emt 00:00:40]} 7. d3 {[%clk 01:30:56]}
{[%emt 00:00:33]} h6 {[%clk 01:24:42]} {[%emt 00:06:26]} 8. Qb3 {[%clk
01:29:42]} {[%emt 00:01:43]} Qb6 {[%clk 01:22:50]} {[%emt 00:02:22]} 9. Qc2
{[%clk 01:29:37]} {[%emt 00:00:35]} Be7 {[%clk 01:20:43]} {[%emt 00:02:37]} 10.
Nc3 {[%clk 01:29:39]} {[%emt 00:00:28]} O-O {[%clk 01:20:02]} {[%emt 00:01:11]}
11. e4 {[%clk 01:29:08]} {[%emt 00:01:01]} dxe4 {[%clk 01:18:48]} {[%emt
00:01:44]} 12. dxe4 {[%clk 01:29:23]} {[%emt 00:00:15]} Bh7 {[%clk 01:17:16]}
{[%emt 00:02:01]} 13. Be3 {[%clk 01:20:33]} {[%emt 00:09:20]} Qa5 {[%clk
01:16:58]} {[%emt 00:00:48]} 14. h3 {[%clk 01:18:51]} {[%emt 00:02:11]} Bb4
{[%clk 01:12:10]} {[%emt 00:05:17]} 15. Bd4 {[%clk 00:52:50]} {[%emt 00:26:32]}
Bxc3 {[%clk 01:09:56]} {[%emt 00:02:44]} 16. Bxc3 {[%clk 00:52:40]} {[%emt
00:00:40]} Bxe4 {[%clk 01:09:15]} {[%emt 00:01:10]} 17. Qc1 {[%clk 00:32:37]}
{[%emt 00:20:34]} Qd8 {[%clk 01:07:10]} {[%emt 00:02:34]} 18. Qf4 {[%clk
00:28:42]} {[%emt 00:04:25]} Bxf3 {[%clk 01:02:40]} {[%emt 00:05:00]} 19. Bxf3
{[%clk 00:27:11]} {[%emt 00:02:01]} Nd5 {[%clk 01:01:04]} {[%emt 00:02:05]} 20.
Bxd5 {[%clk 00:22:39]} {[%emt 00:05:03]} Qxd5 {[%clk 01:01:23]} {[%emt
00:00:11]} 21. Rfd1 {[%clk 00:23:03]} {[%emt 00:00:06]} Qe6 {[%clk 00:54:24]}
{[%emt 00:07:29]} 22. Kh2 {[%clk 00:15:40]} {[%emt 00:07:52]} f6 {[%clk
00:45:48]} {[%emt 00:09:06]} 23. Bb4 {[%clk 00:11:27]} {[%emt 00:04:44]} Rc8
{[%clk 00:42:41]} {[%emt 00:03:36]} 24. Re1 {[%clk 00:11:51]} {[%emt 00:00:05]}
Qd5 {[%clk 00:40:44]} {[%emt 00:02:28]} 25. Re7 {[%clk 00:10:55]} {[%emt
00:01:26]} Na6 {[%clk 00:39:18]} {[%emt 00:01:56]} 26. Bc3 {[%clk 00:10:24]}
{[%emt 00:01:01]} Rf8 {[%clk 00:37:38]} {[%emt 00:02:10]} 27. Rxb7 {[%clk
00:08:32]} {[%emt 00:02:22]} Nc5 {[%clk 00:36:31]} {[%emt 00:01:36]} 28. Re7
{[%clk 00:08:29]} {[%emt 00:00:33]} Rae8 {[%clk 00:29:23]} {[%emt 00:07:38]} 29.
Rae1 {[%clk 00:06:32]} {[%emt 00:02:27]} Nd3 {[%clk 00:28:26]} {[%emt
00:01:27]} 30. Qg4 {[%clk 00:06:21]} {[%emt 00:00:41]} Rxe7 {[%clk 00:28:38]}
{[%emt 00:00:18]} 31. Rxe7 {[%clk 00:06:47]} {[%emt 00:00:04]} Rf7 {[%clk
00:27:58]} {[%emt 00:01:10]} 32. Re8+ {[%clk 00:04:38]} {[%emt 00:02:40]} Kh7
{[%clk 00:25:53]} {[%emt 00:02:34]} 33. Qe2 {[%clk 00:04:01]} {[%emt 00:01:06]}
Rd7 {[%clk 00:22:26]} {[%emt 00:03:58]} 34. Kg1 {[%clk 00:02:50]} {[%emt
00:01:41]} Nc1 {[%clk 00:18:26]} {[%emt 00:04:30]} 35. Qc2+ {[%clk 00:02:07]}
{[%emt 00:01:12]} Nd3 {[%clk 00:18:54]} {[%emt 00:00:02]} 36. Qe2 {[%clk
00:02:19]} {[%emt 00:00:18]} Nc1 {[%clk 00:19:19]} {[%emt 00:00:06]} 37. Qc2+
{[%clk 00:01:58]} {[%emt 00:00:50]} Nd3 {[%clk 00:19:46]} {[%emt 00:00:02]} 38.
Qe2 {[%clk 00:01:19]} {[%emt 00:01:09]} 1/2-1/2

[Event "MCR zen 2022"]
[Site "Hotel Opera, Jaroměřice nad Rokytnou, Czech Republic"]
[Date "????.??.??"]
[Round "2.4"]
[White "Lhotska, Anna"]
[Black "Koubova, Anna Marie"]
[Result "1-0"]
[TimeControl "90 min/40 moves + 30 min + 30s/move"]
[WhiteElo "2029"]
[BlackElo "2115"]

1. e4 {[%clk 01:30:57]} {[%emt 00:00:03]} c6 {[%clk 01:30:32]} {[%emt
00:00:28]} 2. d4 {[%clk 01:31:19]} {[%emt 00:00:08]} d5 {[%clk 01:30:53]}
{[%emt 00:00:08]} 3. exd5 {[%clk 01:31:31]} {[%emt 00:00:18]} cxd5 {[%clk
01:31:12]} {[%emt 00:00:11]} 4. Bd3 {[%clk 01:31:43]} {[%emt 00:00:18]} Nc6
{[%clk 01:31:00]} {[%emt 00:00:41]} 5. c3 {[%clk 01:32:04]} {[%emt 00:00:10]}
Qc7 {[%clk 01:31:00]} {[%emt 00:00:30]} 6. Be3 {[%clk 01:31:56]} {[%emt
00:00:37]} Nf6 {[%clk 01:20:23]} {[%emt 00:11:07]} 7. h3 {[%clk 01:31:33]}
{[%emt 00:00:53]} e6 {[%clk 01:20:20]} {[%emt 00:00:33]} 8. Nf3 {[%clk
01:31:36]} {[%emt 00:00:27]} Bd6 {[%clk 01:15:27]} {[%emt 00:05:23]} 9. Nbd2
{[%clk 01:31:26]} {[%emt 00:00:40]} O-O {[%clk 01:15:14]} {[%emt 00:00:43]} 10.
O-O {[%clk 01:31:39]} {[%emt 00:00:17]} Rb8 {[%clk 01:13:55]} {[%emt 00:01:49]}
11. Rc1 {[%clk 01:31:16]} {[%emt 00:00:53]} b5 {[%clk 01:11:10]} {[%emt
00:03:16]} 12. b4 {[%clk 01:29:58]} {[%emt 00:01:47]} Ne7 {[%clk 00:57:31]}
{[%emt 00:14:09]} 13. Bg5 {[%clk 01:16:12]} {[%emt 00:14:15]} Nd7 {[%clk
00:56:04]} {[%emt 00:01:58]} 14. Re1 {[%clk 01:15:13]} {[%emt 00:01:29]} f6
{[%clk 00:43:13]} {[%emt 00:13:21]} 15. Bh4 {[%clk 00:50:18]} {[%emt 00:25:24]}
e5 {[%clk 00:42:18]} {[%emt 00:01:26]} 16. dxe5 {[%clk 00:45:45]} {[%emt
00:05:03]} fxe5 {[%clk 00:34:46]} {[%emt 00:08:03]} 17. Qb3 {[%clk 00:26:39]}
{[%emt 00:19:35]} Nf6 {[%clk 00:32:49]} {[%emt 00:02:27]} 18. Ne4 {[%clk
00:25:22]} {[%emt 00:01:47]} Be6 {[%clk 00:01:37]} {[%emt 00:31:42]} 19. Nxd6
{[%clk 00:04:12]} {[%emt 00:21:39]} Qxd6 {[%clk 00:02:00]} {[%emt 00:00:07]} 20.
Rxe5 {[%clk 00:03:43]} {[%emt 00:01:00]} Nd7 {[%clk 00:01:17]} {[%emt
00:01:13]} 21. Re2 {[%clk 00:03:25]} {[%emt 00:00:48]} Nc6 {[%clk 00:00:46]}
{[%emt 00:01:02]} 22. Bg3 {[%clk 00:03:24]} {[%emt 00:00:30]} Qe7 {[%clk
00:00:46]} {[%emt 00:00:30]} 23. Bxb8 {[%emt 00:01:23]} Ncxb8 {[%clk 00:00:46]}
{[%emt 00:00:29]} 24. Nd4 {[%clk 00:02:21]} {[%emt 00:00:41]} Qg5 {[%clk
00:00:58]} {[%emt 00:00:18]} 25. Qc2 {[%clk 00:00:49]} {[%emt 00:02:03]} Bxh3
{[%clk 00:01:20]} {[%emt 00:00:09]} 26. f3 {[%clk 00:00:47]} {[%emt 00:00:31]}
Ne5 {[%clk 00:01:06]} {[%emt 00:00:44]} 27. Rxe5 {[%clk 00:00:33]} {[%emt
00:00:44]} Qxe5 {[%clk 00:01:30]} {[%emt 00:00:06]} 28. gxh3 {[%clk 00:00:50]}
{[%emt 00:00:13]} Qe3+ {[%clk 00:00:38]} {[%emt 00:01:22]} 29. Kh1 {[%clk
00:01:06]} {[%emt 00:00:14]} Nc6 {[%clk 00:00:35]} {[%emt 00:00:33]} 30. Bxh7+
{[%clk 00:00:36]} {[%emt 00:01:01]} Kh8 {[%clk 00:00:52]} {[%emt 00:00:13]} 31.
Rf1 {[%clk 00:00:32]} {[%emt 00:00:34]} Nxd4 {[%clk 00:00:39]} {[%emt
00:00:44]} 32. cxd4 {[%clk 00:00:48]} {[%emt 00:00:13]} Rxf3 {[%clk 00:00:36]}
{[%emt 00:00:33]} 33. Rxf3 {[%clk 00:00:49]} {[%emt 00:00:29]} Qxf3+ {[%clk
00:01:02]} {[%emt 00:00:04]} 34. Kh2 {[%clk 00:01:11]} {[%emt 00:00:08]} Qf4+
{[%clk 00:01:04]} {[%emt 00:00:28]} 35. Kg2 {[%clk 00:01:19]} {[%emt 00:00:22]}
Qxd4 {[%clk 00:00:31]} {[%emt 00:01:04]} 36. Bg6 {[%clk 00:01:18]} {[%emt
00:00:30]} Qc4 {[%clk 00:00:35]} {[%emt 00:00:26]} 37. Qxc4 {[%clk 00:01:42]}
{[%emt 00:00:05]} bxc4 {[%clk 00:00:49]} {[%emt 00:00:17]} 38. Kf3 {[%clk
00:01:59]} {[%emt 00:00:12]} d4 {[%clk 00:01:03]} {[%emt 00:00:16]} 39. Ke4
{[%clk 00:02:10]} {[%emt 00:00:19]} d3 {[%clk 00:01:23]} {[%emt 00:00:11]} 40.
Kd4 {[%clk 00:02:29]} {[%emt 00:00:10]} d2 {[%clk 00:01:39]} {[%emt 00:00:14]}
41. Bc2 {[%clk 00:02:53]} {[%emt 00:00:06]} 1-0

[Event "MCR zen 2022"]
[Site "Hotel Opera, Jaroměřice nad Rokytnou, Czech Republic"]
[Date "????.??.??"]
[Round "2.5"]
[White "Sikorova, Olga"]
[Black "Novosadova, Kristyna"]
[Result "1-0"]
[TimeControl "90 min/40 moves + 30 min + 30s/move"]
[WhiteElo "2173"]
[BlackElo "2147"]

1. c4 {[%clk 01:30:53]} {[%emt 00:00:06]} f5 {[%clk 01:30:35]} {[%emt
00:00:26]} 2. Nc3 {[%clk 01:31:02]} {[%emt 00:00:22]} Nc6 {[%clk 01:30:51]}
{[%emt 00:00:14]} 3. g3 {[%clk 01:30:54]} {[%emt 00:00:38]} g6 {[%clk
01:30:37]} {[%emt 00:00:44]} 4. Bg2 {[%clk 01:31:15]} {[%emt 00:00:08]} Bg7
{[%clk 01:30:59]} {[%emt 00:00:08]} 5. d3 {[%clk 01:30:59]} {[%emt 00:00:47]}
Nf6 {[%clk 01:30:47]} {[%emt 00:00:42]} 6. e4 {[%clk 01:31:14]} {[%emt
00:00:15]} d6 {[%clk 01:30:48]} {[%emt 00:00:28]} 7. Nge2 {[%clk 01:31:36]}
{[%emt 00:00:08]} O-O {[%clk 01:29:03]} {[%emt 00:02:16]} 8. O-O {[%clk
01:31:23]} {[%emt 00:00:44]} e5 {[%clk 01:29:07]} {[%emt 00:00:25]} 9. Nd5
{[%clk 01:31:05]} {[%emt 00:00:48]} Nh5 {[%clk 01:26:11]} {[%emt 00:03:25]} 10.
Rb1 {[%clk 01:26:29]} {[%emt 00:05:07]} Be6 {[%clk 01:20:28]} {[%emt 00:06:13]}
11. b4 {[%clk 01:25:30]} {[%emt 00:01:29]} Qd7 {[%clk 01:18:23]} {[%emt
00:02:35]} 12. b5 {[%clk 01:21:24]} {[%emt 00:04:36]} Nd8 {[%clk 01:17:20]}
{[%emt 00:01:33]} 13. exf5 {[%clk 01:10:01]} {[%emt 00:11:53]} gxf5 {[%clk
01:08:26]} {[%emt 00:09:24]} 14. f4 {[%clk 01:07:29]} {[%emt 00:03:01]} c6
{[%clk 01:07:18]} {[%emt 00:01:38]} 15. bxc6 {[%clk 01:01:22]} {[%emt
00:06:37]} bxc6 {[%clk 01:07:31]} {[%emt 00:00:17]} 16. Ne3 {[%clk 01:00:00]}
{[%emt 00:01:52]} Nf6 {[%clk 00:57:42]} {[%emt 00:10:19]} 17. fxe5 {[%clk
00:51:36]} {[%emt 00:08:54]} dxe5 {[%clk 00:58:05]} {[%emt 00:00:07]} 18. d4
{[%clk 00:50:59]} {[%emt 00:01:08]} exd4 {[%clk 00:47:29]} {[%emt 00:11:05]} 19.
Nxd4 {[%clk 00:45:58]} {[%emt 00:05:31]} Ng4 {[%clk 00:44:43]} {[%emt
00:03:16]} 20. Nxe6 {[%clk 00:44:03]} {[%emt 00:02:26]} Qxe6 {[%clk 00:44:47]}
{[%emt 00:00:25]} 21. Nxg4 {[%clk 00:32:08]} {[%emt 00:12:25]} fxg4 {[%clk
00:45:15]} {[%emt 00:00:02]} 22. Rxf8+ {[%clk 00:30:15]} {[%emt 00:02:23]} Bxf8
{[%clk 00:45:24]} {[%emt 00:00:21]} 23. Bf4 {[%clk 00:29:33]} {[%emt 00:01:12]}
Nf7 {[%clk 00:43:38]} {[%emt 00:02:16]} 24. Qa4 {[%clk 00:21:59]} {[%emt
00:08:04]} Bc5+ {[%clk 00:42:34]} {[%emt 00:01:34]} 25. Kh1 {[%clk 00:20:50]}
{[%emt 00:01:39]} Rc8 {[%clk 00:39:18]} {[%emt 00:03:46]} 26. Qa5 {[%clk
00:18:22]} {[%emt 00:02:58]} Qxc4 {[%clk 00:27:13]} {[%emt 00:12:35]} 27. Rc1
{[%clk 00:17:32]} {[%emt 00:01:20]} Bb4 {[%clk 00:17:16]} {[%emt 00:10:26]} 28.
Qf5 {[%clk 00:17:07]} {[%emt 00:00:55]} Qa6 {[%clk 00:17:34]} {[%emt 00:00:13]}
29. Qxg4+ {[%clk 00:17:15]} {[%emt 00:00:22]} Kf8 {[%clk 00:15:56]} {[%emt
00:02:08]} 30. Rf1 {[%clk 00:16:36]} {[%emt 00:01:09]} c5 {[%clk 00:15:15]}
{[%emt 00:01:11]} 31. Bd6+ {[%clk 00:15:12]} {[%emt 00:01:53]} Qxd6 {[%clk
00:15:36]} {[%emt 00:00:09]} 32. Qxc8+ {[%clk 00:15:38]} {[%emt 00:00:05]} Kg7
{[%clk 00:15:58]} {[%emt 00:00:08]} 33. Qb7 {[%clk 00:15:17]} {[%emt 00:00:51]}
1-0